bitfinex/quotes_SOLUSD_20250403
["timestamp","ask_amount","ask_price","bid_price","bid_amount"]
[1743719065874,51.91648471,116.64,116.63,26.09745337]
[1743719066384,51.91648471,116.64,116.63,34.67155337]
[1743719069393,51.91648471,116.64,116.63,26.09745337]
[1743719069577,51.91648471,116.64,116.63,34.67155337]
[1743719070875,51.91648471,116.64,116.63,26.09745337]
[1743719071071,51.91648471,116.64,116.63,34.67155337]
[1743719077579,70.56613357,116.64,116.63,26.09745337]
[1743719078689,70.56613357,116.64,116.63,34.67155337]
[1743719078889,0.14216157,116.61,116.59,8.577]
[1743719079100,59.27216157,116.61,116.6,26.09745337]
[1743719079501,59.27216157,116.61,116.6,34.67375337]
[1743719080499,71.49,116.63,116.6,34.67375337]
[1743719080682,51.63216157,116.63,116.62,26.09745337]
[1743719080991,51.77432314,116.63,116.62,26.09745337]
[1743719081304,51.91648471,116.63,116.62,26.09745337]
[1743719081897,51.49,116.63,116.62,34.67225337]
[1743719082279,51.77432314,116.63,116.62,34.67225337]
[1743719082495,7.64,116.64,116.62,34.67225337]
[1743719082705,59.55648471,116.64,116.63,26.09745337]
[1743719083604,59.41432314,116.64,116.63,26.09745337]
[1743719083980,0.14216157,116.64,116.63,34.67155337]
[1743719084703,0.28432314,116.64,116.63,34.67155337]
[1743719085109,0.42648471,116.64,116.63,34.67155337]
[1743719085476,70.56613357,116.64,116.63,26.09745337]
[1743719085675,90.423972,116.63,116.62,26.09745337]
[1743719085881,71.91648471,116.63,116.62,34.67225337]
[1743719086109,51.91648471,116.63,116.62,34.67225337]
[1743719086904,0.42648471,116.63,116.62,34.67225337]
[1743719087305,90.56613357,116.63,116.62,34.67225337]
[1743719089309,70.56613357,116.63,116.62,34.67225337]
[1743719094508,0.28432314,116.63,116.62,34.67225337]
[1743719094701,51.77432314,116.63,116.62,34.67225337]
[1743719097816,51.77432314,116.63,116.62,25.26291595]
[1743719098227,137.5559,116.66,116.62,46.70001595]
[1743719098514,51.49,116.66,116.65,16.68811595]
[1743719098894,51.77432314,116.66,116.65,16.68811595]
[1743719099126,26.43181043,116.68,116.65,16.68811595]
[1743719099339,7.78216157,116.68,116.67,16.68811595]
[1743719099624,26.43181043,116.68,116.67,16.68811595]
[1743719099806,26.71613357,116.68,116.67,26.05595709]
[1743719100328,26.43181043,116.68,116.67,26.05595709]
[1743719100704,26.71613357,116.68,116.67,26.05595709]
[1743719103244,26.71613357,116.68,116.62,6.1401]
[1743719103245,0.14216157,116.66,116.61,21.4381]
[1743719103531,0.42648471,116.65,116.64,26.05595709]
[1743719103835,0.42648471,116.65,116.64,34.62925709]
[1743719105543,0.42648471,116.65,116.64,26.05595709]
[1743719106822,0.42648471,116.65,116.64,34.62925709]
[1743719108334,0.42648471,116.65,116.64,26.05595709]
[1743719109950,155.07613357,116.65,116.64,26.05595709]
[1743719110149,0.28432314,116.62,116.59,8.577]
[1743719110323,0.28432314,116.62,116.61,26.05595709]
[1743719110523,0.28432314,116.62,116.61,34.63145709]
[1743719112849,0.28432314,116.62,116.61,26.05595709]
[1743719112850,71.77432314,116.62,116.61,26.05595709]
[1743719113014,18.79181043,116.61,116.6,8.5759]
[1743719113349,0.28432314,116.62,116.6,56.07265709]
[1743719113540,0.28432314,116.62,116.61,26.05595709]
[1743719115066,0.28432314,116.62,116.61,34.63145709]
[1743719115460,136.0,116.63,116.61,34.63145709]
[1743719115643,136.0,116.63,116.62,26.05595709]
[1743719115845,7.64,116.64,116.62,26.05595709]
[1743719116150,7.92432314,116.64,116.63,26.05595709]
[1743719116326,0.28432314,116.64,116.63,26.05595709]
[1743719117034,0.28432314,116.64,116.63,34.63005709]
[1743719119752,70.56613357,116.64,116.63,26.05595709]
[1743719119942,90.56613357,116.64,116.63,34.63005709]
[1743719121658,90.56613357,116.64,116.63,25.26241106]
[1743719123639,70.56613357,116.64,116.63,25.26241106]
[1743719123836,51.77432314,116.64,116.63,25.26241106]
[1743719125061,0.28432314,116.64,116.63,25.26241106]
[1743719126464,70.56613357,116.64,116.63,25.26241106]
[1743719128659,51.49,116.65,116.63,25.26241106]
[1743719128962,0.28432314,116.64,116.63,8.5741]
[1743719130057,0.28432314,116.64,116.63,25.26241106]
[1743719134551,90.56613357,116.64,116.58,66.75324424]
[1743719134861,0.28432314,116.61,116.59,8.577]
[1743719135168,51.49,116.62,116.59,30.0196]
[1743719135345,0.28432314,116.63,116.59,30.0196]
[1743719135548,187.49,116.64,116.59,30.0196]
[1743719135749,0.28432314,116.64,116.59,30.0196]
[1743719135965,0.28432314,116.64,116.63,16.68831106]
[1743719136552,51.49,116.65,116.63,25.26241106]
[1743719136752,51.49,116.66,116.64,16.68831106]
[1743719136967,51.63216157,116.66,116.65,16.68831106]
[1743719137256,51.91648471,116.66,116.65,16.68831106]
[1743719138145,51.77432314,116.66,116.65,16.68831106]
[1743719138346,51.49,116.68,116.65,16.68831106]
[1743719138553,0.14216157,116.71,116.68,29.9965]
[1743719138778,1.5519,116.72,116.7,16.68831106]
[1743719139079,0.14216157,116.73,116.71,16.68831106]
[1743719139284,0.14216157,116.73,116.72,16.68831106]
[1743719139577,0.42648471,116.73,116.72,16.68831106]
[1743719140462,0.14216157,116.74,116.72,16.68831106]
[1743719140773,0.14216157,116.74,116.73,16.68831106]
[1743719140967,38.64964886,116.73,116.72,16.68831106]
[1743719141180,38.933972,116.73,116.72,16.68831106]
[1743719141868,38.933972,116.73,116.71,16.68831106]
[1743719142054,0.14216157,116.72,116.71,16.68831106]
[1743719142647,0.14216157,116.73,116.71,25.25651106]
[1743719142853,0.14216157,116.73,116.72,16.68831106]
[1743719143067,0.42648471,116.73,116.72,16.68831106]
[1743719143574,156.0,116.75,116.72,16.68831106]
[1743719143779,143.78216157,116.75,116.74,16.68831106]
[1743719144070,8.06648471,116.75,116.74,16.68831106]
[1743719144469,7.78216157,116.75,116.74,16.68831106]
[1743719144662,8.06648471,116.75,116.74,16.68831106]
[1743719144863,0.42648471,116.75,116.74,16.68831106]
[1743719145878,0.14216157,116.74,116.73,16.68831106]
[1743719147077,0.14216157,116.74,116.73,25.25501106]
[1743719147380,0.28432314,116.75,116.73,46.67191106]
[1743719147680,0.28432314,116.75,116.74,16.68831106]
[1743719147880,7.64,116.76,116.74,16.68831106]
[1743719148075,8.06648471,116.76,116.75,16.68831106]
[1743719148685,0.42648471,116.76,116.75,16.68831106]
[1743719148879,0.14216157,116.75,116.73,16.68831106]
[1743719149776,0.42648471,116.75,116.73,16.68831106]
[1743719149971,30.54388471,116.75,116.72,16.68831106]
[1743719150168,0.14216157,116.73,116.69,8.5697]
[1743719150364,0.14216157,116.73,116.72,16.68831106]
[1743719151085,20.42648471,116.73,116.7,16.68831106]
[1743719151465,0.28432314,116.71,116.7,16.68831106]
[1743719151671,0.42648471,116.71,116.68,8.5704]
[1743719151874,0.42648471,116.71,116.69,16.68831106]
[1743719153171,183.64453357,116.71,116.68,16.68831106]
[1743719153765,183.64453357,116.71,116.67,8.5708]
[1743719153959,183.64453357,116.71,116.68,16.68831106]
[1743719154380,18.79181043,116.7,116.68,16.68831106]
[1743719154966,20.29601043,116.7,116.68,16.68831106]
[1743719155166,46.00601043,116.7,116.68,25.25861106]
[1743719155985,46.00601043,116.7,116.68,16.68831106]
[1743719156282,20.29601043,116.7,116.68,16.68831106]
[1743719156478,20.29601043,116.7,116.68,25.25841106]
[1743719156788,20.29601043,116.7,116.68,16.68831106]
[1743719158182,0.28432314,116.69,116.68,16.68831106]
[1743719158490,0.14216157,116.68,116.66,16.68831106]
[1743719158687,0.28432314,116.67,116.66,25.26001106]
[1743719159871,0.28432314,116.69,116.66,25.26001106]
[1743719160076,0.28432314,116.69,116.68,16.68831106]
[1743719160690,0.28432314,116.69,116.68,25.25871106]
[1743719161887,0.42648471,116.69,116.66,21.4297]
[1743719162079,19.07613357,116.69,116.65,8.5726]
[1743719162277,19.07613357,116.69,116.66,16.68831106]
[1743719163193,19.07613357,116.69,116.66,25.26011106]
[1743719163891,27.64603357,116.69,116.66,16.68831106]
[1743719164066,44.33434463,116.69,116.65,16.68831106]
[1743719164271,0.14216157,116.67,116.65,25.26081106]
[1743719164473,0.28432314,116.66,116.65,16.68831106]
[1743719165871,0.14216157,116.65,116.63,8.5737]
[1743719166194,0.14216157,116.65,116.63,25.26201106]
[1743719166391,0.14216157,116.65,116.61,6.451]
[1743719166594,0.14216157,116.65,116.63,16.68831106]
[1743719166890,51.77432314,116.66,116.64,16.68831106]
[1743719167090,51.91648471,116.66,116.65,16.68831106]
[1743719167298,51.91648471,116.66,116.64,16.68831106]
[1743719167996,51.91648471,116.66,116.64,25.26151106]
[1743719169373,51.91648471,116.66,116.65,16.68831106]
[1743719169577,51.91648471,116.66,116.64,25.26151106]
[1743719170281,51.91648471,116.66,116.64,16.68831106]
[1743719170481,51.91648471,116.66,116.64,25.26151106]
[1743719170790,0.14216157,116.65,116.63,25.26201106]
[1743719170996,0.14216157,116.65,116.63,16.68831106]
[1743719171391,0.14216157,116.65,116.63,25.26221106]
[1743719171887,51.77432314,116.66,116.64,16.68831106]
[1743719172089,51.91648471,116.66,116.65,25.26091106]
[1743719172287,51.91648471,116.66,116.62,21.436]
[1743719172288,51.91648471,116.66,116.64,16.68831106]
[1743719172685,137.5535,116.7,116.65,16.68831106]
[1743719172887,0.14216157,116.7,116.69,16.68831106]
[1743719173295,0.42648471,116.7,116.69,16.68831106]
[1743719174301,0.42648471,116.7,116.69,25.25801106]
[1743719175099,0.28432314,116.7,116.69,25.25801106]
[1743719175699,0.28432314,116.71,116.69,34.61264695]
[1743719175904,0.42648471,116.71,116.69,34.61264695]
[1743719179206,0.42648471,116.71,116.7,26.04294695]
[1743719179587,0.42648471,116.71,116.69,34.61264695]
[1743719180904,0.28432314,116.71,116.7,26.04294695]
[1743719181314,0.28432314,116.71,116.69,26.04294695]
[1743719183691,0.28432314,116.71,116.7,8.5689]
[1743719184308,0.28432314,116.71,116.69,26.04294695]
[1743719184309,0.42648471,116.71,116.69,34.61214695]
[1743719184513,0.42648471,116.71,116.69,8.5692]
[1743719184715,0.28432314,116.69,116.68,8.57]
[1743719185007,0.28432314,116.69,116.68,34.61294695]
[1743719186095,51.63216157,116.71,116.68,34.61294695]
[1743719186298,51.63216157,116.73,116.7,26.04294695]
[1743719186608,0.14216157,116.74,116.72,26.04294695]
[1743719186810,0.14216157,116.75,116.73,26.04294695]
[1743719187119,34.60644695,116.78,116.74,26.04294695]
[1743719187120,136.0,116.78,116.74,26.04294695]
[1743719187424,0.28432314,116.77,116.76,26.04294695]
[1743719187598,51.63216157,116.78,116.76,26.04294695]
[1743719187599,51.49,116.78,116.76,26.04294695]
[1743719187799,136.0,116.79,116.77,26.04294695]
[1743719188107,23.46692088,116.8,116.78,26.04294695]
[1743719188317,51.49,116.79,116.78,26.04294695]
[1743719188494,51.63216157,116.79,116.78,26.04294695]
[1743719189818,51.91648471,116.79,116.78,26.04294695]
[1743719190117,0.42648471,116.79,116.78,26.04294695]
[1743719191115,0.28432314,116.79,116.78,34.60604695]
[1743719191631,196.7214,116.81,116.78,34.60604695]
[1743719191797,0.28432314,116.8,116.79,26.04294695]
[1743719192297,0.42648471,116.8,116.78,34.60604695]
[1743719192500,0.42648471,116.8,116.79,26.04294695]
[1743719192699,0.28432314,116.8,116.79,26.04294695]
[1743719193919,0.28432314,116.82,116.79,34.60524695]
[1743719194121,0.14216157,116.84,116.81,26.04294695]
[1743719194330,0.14216157,116.85,116.83,26.04294695]
[1743719194999,0.42648471,116.85,116.83,26.04294695]
[1743719195204,0.14216157,116.85,116.83,26.04294695]
[1743719195396,0.14216157,116.85,116.84,26.04294695]
[1743719195693,0.42648471,116.85,116.83,26.04294695]
[1743719197220,7.62,116.86,116.84,26.04294695]
[1743719197728,0.28432314,116.85,116.84,26.04294695]
[1743719198026,7.62,116.86,116.84,26.04294695]
[1743719199426,27.62,116.86,116.84,26.04294695]
[1743719199629,0.28432314,116.85,116.84,26.04294695]
[1743719200513,0.28432314,116.85,116.83,26.04294695]
[1743719200514,0.42648471,116.85,116.83,26.04294695]
[1743719200717,20.0,116.84,116.82,26.04294695]
[1743719200922,20.0,116.84,116.81,8.5606]
[1743719201102,20.0,116.84,116.82,26.04294695]
[1743719203228,20.0,116.84,116.82,34.60304695]
[1743719203529,20.0,116.84,116.82,26.04294695]
[1743719204322,0.28432314,116.83,116.81,34.60344695]
[1743719204500,0.28432314,116.83,116.81,26.04294695]
[1743719207730,0.28432314,116.83,116.81,16.63661419]
[1743719207907,0.28432314,116.83,116.82,16.63661419]
[1743719208829,0.28432314,116.83,116.81,16.63661419]
[1743719211937,0.28432314,116.83,116.81,25.19741419]
[1743719212121,0.28432314,116.83,116.82,16.63661419]
[1743719212936,0.28432314,116.83,116.81,25.19741419]
[1743719213116,0.28432314,116.83,116.81,16.63661419]
[1743719213317,19.07613357,116.83,116.8,25.19781419]
[1743719213638,0.28432314,116.81,116.8,25.19781419]
[1743719215036,0.42648471,116.81,116.77,6.4354]
[1743719215333,0.42648471,116.81,116.76,89.58845676]
[1743719215334,0.42648471,116.81,116.78,25.19921419]
[1743719216120,8.98748471,116.81,116.78,16.63661419]
[1743719216615,8.98748471,116.81,116.77,8.5635]
[1743719216946,60.47748471,116.81,116.78,16.63661419]
[1743719217238,0.14216157,116.79,116.76,25.20071419]
[1743719217538,7.62,116.78,116.76,25.20071419]
[1743719218043,7.62,116.78,116.76,16.63661419]
[1743719218639,7.62,116.78,116.75,8.565]
[1743719218640,0.28432314,116.77,116.75,25.20161419]
[1743719218835,0.28432314,116.77,116.75,16.63661419]
[1743719219133,0.42648471,116.77,116.73,8.566]
[1743719219337,0.42648471,116.77,116.73,25.20261419]
[1743719219740,37.25954776,116.77,116.72,25.20371419]
[1743719220246,0.14216157,116.75,116.72,25.20371419]
[1743719220418,7.62,116.74,116.72,25.20371419]
[1743719221227,0.42648471,116.73,116.68,27.9088]
[1743719221433,171.71274776,116.73,116.68,16.63661419]
[1743719221640,171.71274776,116.73,116.67,8.5711]
[1743719221857,0.14216157,116.7,116.67,34.62294711]
[1743719222036,7.62,116.69,116.67,34.62294711]
[1743719222426,0.42648471,116.68,116.66,26.05184711]
[1743719222626,0.42648471,116.68,116.65,34.62414711]
[1743719222841,45.12798068,116.68,116.64,34.62484711]
[1743719223347,45.12798068,116.68,116.64,8.573]
[1743719224019,53.69838068,116.68,116.64,8.573]
[1743719224225,53.69838068,116.68,116.63,34.62584711]
[1743719224424,0.14216157,116.64,116.59,8.577]
[1743719224627,0.28432314,116.62,116.59,34.62884711]
[1743719224929,0.42648471,116.62,116.59,8.577]
[1743719225136,0.28432314,116.62,116.59,8.577]
[1743719225346,19.07613357,116.62,116.59,8.577]
[1743719225645,0.42648471,116.62,116.59,34.62884711]
[1743719226139,0.42648471,116.62,116.59,8.577]
[1743719226448,0.42648471,116.62,116.59,34.62884711]
[1743719226946,19.07613357,116.62,116.59,34.62884711]
[1743719227246,19.07613357,116.62,116.59,8.577]
[1743719227548,19.07613357,116.6,116.56,8.5792]
[1743719227725,7.62,116.59,116.57,26.05184711]
[1743719228040,136.0,116.61,116.58,26.05184711]
[1743719228224,0.28432314,116.61,116.59,26.05184711]
[1743719228846,7.62,116.62,116.6,34.62814711]
[1743719229027,0.28432314,116.61,116.6,8.5763]
[1743719229222,19.07613357,116.61,116.59,8.5767]
[1743719229743,0.42648471,116.61,116.59,34.62854711]
[1743719230044,136.0,116.64,116.6,26.05184711]
[1743719230248,0.14216157,116.63,116.61,26.05184711]
[1743719230447,0.28432314,116.63,116.61,26.05184711]
[1743719230750,0.14216157,116.63,116.61,34.62684711]
[1743719230955,0.28432314,116.63,116.61,34.62684711]
[1743719232045,7.78216157,116.64,116.61,34.62684711]
[1743719232243,7.78216157,116.64,116.63,26.05184711]
[1743719232543,7.92432314,116.64,116.63,26.05184711]
[1743719232845,0.14216157,116.66,116.63,26.05184711]
[1743719233025,8.06648471,116.66,116.63,26.05184711]
[1743719233433,7.78216157,116.66,116.63,26.05184711]
[1743719233646,0.28432314,116.65,116.63,26.05184711]
[1743719234144,0.28432314,116.65,116.64,8.5733]
[1743719234843,1.5627,116.69,116.64,34.62514711]
[1743719235022,26.43181043,116.7,116.67,26.05184711]
[1743719235229,0.28432314,116.69,116.66,26.05184711]
[1743719235430,26.43181043,116.7,116.66,26.05184711]
[1743719235841,0.28432314,116.69,116.66,26.05184711]
[1743719236042,0.14216157,116.69,116.67,8.5711]
[1743719236229,0.14216157,116.69,116.66,34.62334711]
[1743719236430,0.28432314,116.69,116.66,34.62334711]
[1743719236647,0.14216157,116.69,116.66,34.62334711]
[1743719236844,0.28432314,116.69,116.66,34.62334711]
[1743719239652,0.28432314,116.69,116.67,26.05184711]
[1743719240150,7.64,116.7,116.67,26.05184711]
[1743719240451,7.64,116.7,116.68,26.05184711]
[1743719240651,8.06648471,116.71,116.68,26.05184711]
[1743719240861,8.06648471,116.71,116.69,8.5697]
[1743719241151,0.42648471,116.71,116.69,34.62154711]
[1743719241330,0.14216157,116.72,116.7,26.05184711]
[1743719241943,7.64,116.73,116.7,26.05184711]
[1743719242130,0.28432314,116.72,116.7,26.05184711]
[1743719242334,0.28432314,116.72,116.71,26.05184711]
[1743719242736,0.28432314,116.72,116.71,34.62004711]
[1743719243159,0.28432314,116.72,116.71,8.5682]
[1743719243358,35.04583182,116.72,116.66,8.5719]
[1743719243538,53.69548068,116.72,116.68,26.05184711]
[1743719243734,0.14216157,116.7,116.67,26.05184711]
[1743719244134,0.14216157,116.7,116.66,8.5719]
[1743719244334,0.14216157,116.7,116.67,26.05184711]
[1743719244537,0.28432314,116.69,116.67,26.05184711]
[1743719245033,0.28432314,116.69,116.67,34.62274711]
[1743719245565,0.14216157,116.68,116.65,26.05184711]
[1743719246646,0.14216157,116.68,116.63,30.0094]
[1743719246647,0.42648471,116.66,116.63,34.62594711]
[1743719246854,7.62,116.65,116.63,8.5741]
[1743719247055,7.62,116.65,116.63,34.62594711]
[1743719250260,7.62,116.65,116.64,26.05184711]
[1743719250439,7.90432314,116.65,116.64,26.05184711]
[1743719251053,0.42648471,116.64,116.61,6.5862]
[1743719251246,0.42648471,116.64,116.61,8.5752]
[1743719251860,0.42648471,116.64,116.61,34.62704711]
[1743719253539,0.28432314,116.64,116.62,26.05184711]
[1743719253735,0.28432314,116.64,116.63,34.62594711]
[1743719254152,7.62,116.65,116.63,34.62594711]
[1743719255265,7.62,116.65,116.63,8.5741]
[1743719255462,70.56613357,116.64,116.58,1.6542]
[1743719255653,234.28028068,116.64,116.59,26.05184711]
[1743719255962,0.14216157,116.62,116.59,8.5763]
[1743719256763,0.28432314,116.63,116.61,26.05184711]
[1743719257942,0.28432314,116.63,116.62,8.5748]
[1743719259465,51.77432314,116.63,116.61,8.5751]
[1743719260865,7.64,116.64,116.62,26.05184711]
[1743719261055,51.49,116.66,116.63,26.05184711]
[1743719261245,7.64,116.66,116.63,26.05184711]
[1743719261640,0.28432314,116.65,116.63,26.05184711]
[1743719261976,0.28432314,116.65,116.62,26.05184711]
[1743719262270,0.28432314,116.63,116.61,8.5751]
[1743719263661,0.28432314,116.63,116.61,34.62694711]
[1743719266375,0.14216157,116.65,116.62,26.05184711]
[1743719266559,0.28432314,116.65,116.63,26.05184711]
[1743719266868,195.13,116.66,116.62,26.05184711]
[1743719267068,0.28432314,116.65,116.63,8.5741]
[1743719267572,0.28432314,116.65,116.63,34.62594711]
[1743719268081,27.79850868,116.67,116.63,34.62594711]
[1743719268082,51.91648471,116.67,116.64,26.05184711]
[1743719268385,7.64,116.66,116.64,26.05184711]
[1743719268971,7.64,116.66,116.63,34.62594711]
[1743719269775,27.64,116.66,116.63,34.62594711]
[1743719270368,0.28432314,116.65,116.63,34.62594711]
[1743719270557,0.28432314,116.65,116.62,8.5745]
[1743719270558,20.0,116.64,116.62,8.5745]
[1743719270950,20.0,116.66,116.63,26.05184711]
[1743719271156,21.6045,116.7,116.66,8.5719]
[1743719271352,21.6045,116.7,116.68,26.05184711]
[1743719271353,27.64,116.7,116.68,26.05184711]
[1743719271647,7.64,116.7,116.69,26.05184711]
[1743719273173,7.64,116.7,116.69,34.62154711]
[1743719273369,0.28432314,116.69,116.68,34.62184711]
[1743719273675,0.28432314,116.69,116.68,8.57]
[1743719274171,27.64,116.7,116.68,34.62184711]
[1743719274371,7.64,116.7,116.69,26.05184711]
[1743719274753,7.78216157,116.73,116.69,26.05184711]
[1743719274955,7.64,116.73,116.7,26.05184711]
[1743719275149,20.0,116.74,116.72,34.61934711]
[1743719275353,20.0,116.74,116.73,26.05184711]
[1743719275556,20.28432314,116.74,116.72,34.61934711]
[1743719275873,7.62,116.75,116.72,34.61934711]
[1743719276664,7.62,116.75,116.73,26.05184711]
[1743719277276,7.90432314,116.75,116.74,8.566]
[1743719277462,7.62,116.75,116.73,34.61814711]
[1743719277663,7.62,116.75,116.73,8.5663]
[1743719278572,7.62,116.75,116.72,26.05184711]
[1743719278875,7.62,116.75,116.72,34.61894711]
[1743719280578,156.0,116.78,116.74,26.05184711]
[1743719280870,20.14216157,116.8,116.77,26.05184711]
[1743719281062,0.28432314,116.77,116.72,29.9858]
[1743719281267,20.0,116.76,116.74,26.05184711]
[1743719281472,20.28432314,116.76,116.75,8.5653]
[1743719281865,20.28432314,116.76,116.71,8.5682]
[1743719281866,20.0,116.74,116.71,8.5682]
[1743719282174,20.28432314,116.7,116.68,8.5704]
[1743719282372,27.62,116.72,116.69,26.05184711]
[1743719282561,7.62,116.72,116.7,26.05184711]
[1743719282875,7.62,116.72,116.71,26.05184711]
[1743719283180,20.0,116.74,116.71,26.05184711]
[1743719283562,20.0,116.74,116.72,8.5675]
[1743719284677,20.0,116.74,116.71,34.61964711]
[1743719289179,0.28432314,116.75,116.72,26.05184711]
[1743719289382,20.0,116.76,116.73,26.05184711]
[1743719289885,20.0,116.76,116.72,26.05184711]
[1743719290663,20.0,116.76,116.73,8.5667]
[1743719293286,51.77432314,116.77,116.73,34.61854711]
[1743719293661,79.11,116.8,116.76,26.05184711]
[1743719293867,27.62,116.8,116.77,26.05184711]
[1743719294058,7.62,116.8,116.78,26.05184711]
[1743719294567,0.28432314,116.81,116.78,26.05184711]
[1743719295267,0.28432314,116.81,116.79,8.5623]
[1743719295668,79.11,116.82,116.79,8.5623]
[1743719295869,0.28432314,116.81,116.79,8.5623]
[1743719296786,20.0,116.77,116.74,26.05184711]
[1743719296990,0.28432314,116.76,116.74,26.05184711]
[1743719297180,0.28432314,116.76,116.73,56.03464711]
[1743719297590,20.0,116.75,116.73,8.5667]
[1743719297784,0.28432314,116.76,116.74,26.05184711]
[1743719298293,71.49,116.77,116.74,26.05184711]
[1743719298696,71.49,116.77,116.75,8.5653]
[1743719299792,0.28432314,116.76,116.75,8.5653]
[1743719299978,0.28432314,116.76,116.74,8.5657]
[1743719301394,0.28432314,116.76,116.72,21.4178]
[1743719301899,0.28432314,116.76,116.73,26.05184711]
[1743719303701,0.28432314,116.76,116.74,8.566]
[1743719304197,20.28432314,116.75,116.74,8.566]
[1743719304782,39.07613357,116.75,116.74,8.566]
[1743719304982,20.0,116.75,116.73,8.5663]
[1743719305208,20.28432314,116.77,116.73,56.03504711]
[1743719306207,20.0,116.74,116.73,8.5663]
[1743719306405,20.0,116.76,116.73,34.61814711]
[1743719306599,20.0,116.76,116.73,56.03504711]
[1743719306983,20.0,116.76,116.74,26.05184711]
[1743719307494,20.0,116.78,116.75,26.05184711]
[1743719307701,51.49,116.82,116.77,26.05184711]
[1743719307702,20.0,116.8,116.77,26.05184711]
[1743719307888,80.6265,116.82,116.79,8.5623]
[1743719308297,0.28432314,116.81,116.79,8.5623]
[1743719308500,29.1365,116.82,116.79,8.5623]
[1743719308691,27.62,116.82,116.79,34.61414711]
[1743719309291,20.0,116.82,116.8,26.05184711]
[1743719310209,20.28432314,116.82,116.81,8.5609]
[1743719310398,0.28432314,116.81,116.78,26.05184711]
[1743719311794,0.28432314,116.81,116.79,26.05184711]
[1743719312592,0.28432314,116.81,116.8,8.5616]
[1743719312899,0.28432314,116.81,116.79,8.5619]
[1743719313395,0.42648471,116.78,116.75,8.5653]
[1743719313593,20.0,116.77,116.75,34.61714711]
[1743719314901,20.0,116.79,116.75,34.61714711]
[1743719315214,7.90432314,116.8,116.77,26.05184711]
[1743719316513,7.90432314,116.8,116.77,34.61504711]
[1743719316819,20.28432314,116.79,116.76,34.61604711]
[1743719317197,71.77432314,116.79,116.76,8.5642]
[1743719317702,20.28432314,116.77,116.74,26.05184711]
[1743719318021,71.77432314,116.77,116.74,34.61784711]
[1743719318513,71.77432314,116.77,116.75,26.05184711]
[1743719318716,20.28432314,116.77,116.76,8.5645]
[1743719318908,0.28432314,116.78,116.76,34.61634711]
[1743719319422,0.28432314,116.78,116.76,8.5645]
[1743719321695,0.28432314,116.78,116.75,8.5648]
[1743719322225,0.28432314,116.78,116.75,34.61664711]
[1743719323815,0.28432314,116.78,116.75,56.02984711]
[1743719324322,20.0,116.79,116.75,56.02984711]
[1743719324901,20.0,116.79,116.76,26.05184711]
[1743719325201,20.0,116.79,116.77,8.5638]
[1743719329203,20.0,116.77,116.73,21.4165]
[1743719329519,0.28432314,116.74,116.72,8.5675]
[1743719333425,7.62,116.76,116.73,26.05184711]
[1743719333626,207.49,116.77,116.74,26.05184711]
[1743719333930,0.28432314,116.76,116.74,26.05184711]
[1743719334725,0.28432314,116.76,116.72,29.9862]
[1743719334931,0.28432314,116.76,116.73,26.05184711]
[1743719335137,0.28432314,116.74,116.72,8.5675]
[1743719336013,70.56613357,116.74,116.72,8.5675]
[1743719336219,90.56613357,116.73,116.72,8.5675]
[1743719336420,71.77432314,116.73,116.72,8.5675]
[1743719337523,90.56613357,116.73,116.68,1.5274]
[1743719337712,0.28432314,116.7,116.67,26.05184711]
[1743719338036,71.49,116.71,116.68,34.62224711]
[1743719338530,71.49,116.71,116.68,56.04834711]
[1743719338728,71.49,116.71,116.68,34.62224711]
[1743719339036,0.28432314,116.7,116.68,8.5704]
[1743719339740,20.28432314,116.69,116.68,8.5704]
[1743719341630,7.62,116.7,116.68,34.62224711]
[1743719341813,7.62,116.7,116.69,26.05184711]
[1743719342210,7.62,116.7,116.69,34.62154711]
[1743719343939,20.0,116.71,116.69,34.62154711]
[1743719344622,19.07613357,116.72,116.69,34.62154711]
[1743719344938,20.0,116.71,116.69,34.62154711]
[1743719347843,27.62,116.73,116.7,26.05184711]
[1743719348025,90.28181043,116.75,116.71,34.62004711]
[1743719348225,97.90181043,116.75,116.71,56.04064711]
[1743719348431,0.28432314,116.74,116.72,26.05184711]
[1743719350135,19.07613357,116.72,116.7,34.62074711]
[1743719350341,20.28432314,116.71,116.7,8.5689]
[1743719350723,20.28432314,116.71,116.7,34.62074711]
[1743719352047,38.79181043,116.73,116.7,34.62074711]
[1743719352219,0.28432314,116.72,116.7,34.62074711]
[1743719362557,20.0,116.73,116.71,26.05184711]
[1743719362739,156.0,116.75,116.72,26.05184711]
[1743719362940,156.0,116.75,116.73,26.05184711]
[1743719363251,20.0,116.75,116.73,26.05184711]